bitfinex-derivatives/quotes_SOLF0:USTF0_20250409
["timestamp","ask_amount","ask_price","bid_price","bid_amount"]
[1744205897267,0.06082073,105.11,105.1,9.5202]
[1744205897461,12.94011056,105.13,105.09,0.06391612]
[1744205897771,12.94011056,105.13,105.09,285.09290354]
[1744205898070,103.52088452,105.15,105.11,63.85768846]
[1744205898262,13.04903472,105.2,105.12,63.85768846]
[1744205898466,6.9684493,105.19,105.14,63.85768846]
[1744205898663,0.06339053,105.17,105.15,0.06916144]
[1744205898969,0.06339053,105.17,105.16,9.5148]
[1744205899175,258.80221132,105.25,105.17,285.02898742]
[1744205899363,258.80221132,105.25,105.19,63.85768846]
[1744205899566,258.80221132,105.25,105.19,348.88667588]
[1744205899764,10.95159446,105.24,105.19,285.02898742]
[1744205899969,10.95159446,105.24,105.15,566.71768846]
[1744205899970,4.10546448,105.24,105.15,787.88898742]
[1744205900270,0.07156949,105.23,105.2,0.06864232]
[1744205900463,9.5103,105.21,105.2,0.06864232]
[1744205900660,10.95225189,105.22,105.13,63.85768846]
[1744205900859,10.94972633,105.21,105.11,566.71768846]
[1744205901074,63.85768846,105.18,105.1,285.02898742]
[1744205901271,10.95228383,105.17,105.1,285.02898742]
[1744205901481,9.5196,105.11,105.06,787.88898742]
[1744205901775,4.4498,105.16,105.07,63.85768846]
[1744205901965,9.5179,105.13,105.07,348.88667588]
[1744205902161,10.95317054,105.15,105.07,348.88667588]
[1744205902374,0.0625685,105.13,105.1,0.06959108]
[1744205903666,63.85768846,105.22,105.11,63.85768846]
[1744205903869,10.95106603,105.21,105.13,63.85768846]
[1744205904073,63.85768846,105.21,105.11,285.02898742]
[1744205904369,10.95086023,105.2,105.11,285.02898742]
[1744205904574,9.5133,105.18,105.12,9.5178]
[1744205904770,0.06670442,105.17,105.14,0.06559241]
[1744205904966,9.2972,105.23,105.14,285.02898742]
[1744205905166,0.06302557,105.17,105.14,285.09291481]
[1744205905472,63.85768846,105.2,105.13,502.58]
[1744205905672,63.85768846,105.2,105.09,63.85768846]
[1744205905673,0.06433187,105.17,105.14,0.06381862]
[1744205907072,9.5157,105.15,105.14,1.862e-05]
[1744205907969,9.5148,105.16,105.14,1.862e-05]
[1744205908165,0.06433187,105.17,105.14,1.862e-05]
[1744205908366,0.06433187,105.17,105.15,63.85768846]
[1744205908672,4.4498,105.23,105.15,851.40667588]
[1744205908874,4.4498,105.23,105.15,787.54898742]
[1744205909173,28.1468,105.28,105.17,63.85768846]
[1744205909174,10.93927662,105.26,105.17,63.85768846]
[1744205909390,9.1381,105.28,105.19,63.85768846]
[1744205909681,104.59681745,105.34,105.22,63.85768846]
[1744205909878,0.06391795,105.25,105.22,348.95709392]
[1744205910078,63.85768846,105.32,105.23,62.0]
[1744205910274,10.92234373,105.31,105.22,787.54898742]
[1744205910676,63.85768846,105.29,105.2,4.8537]
[1744205911070,63.85768846,105.31,105.2,4.8537]
[1744205911274,0.06133888,105.26,105.23,0.0671649]
[1744205911482,0.06133888,105.26,105.23,285.09615232]
[1744205911780,0.07237863,105.26,105.23,0.06004527]
[1744205912680,9.5076,105.24,105.23,0.06004527]
[1744205913082,0.07237863,105.26,105.23,0.06004527]
[1744205914178,9.5068,105.25,105.23,0.06004527]
[1744205914483,0.07237863,105.26,105.23,0.06004527]
[1744205915379,9.5076,105.24,105.23,0.06004527]
[1744205916276,0.07237863,105.26,105.23,0.06004527]
[1744205916878,9.5076,105.24,105.23,0.06004527]
[1744205917585,9.5076,105.24,105.23,4.527e-05]
[1744205919187,0.07237863,105.26,105.23,4.527e-05]
[1744205919991,4.4903,105.31,105.23,348.88672115]
[1744205920201,4.4903,105.31,105.24,62.0]
[1744205920389,63.85768846,105.39,105.31,9.5004]
[1744205920688,4.6962,105.42,105.33,63.85768846]
[1744205920882,4.6962,105.42,105.33,348.88667588]
[1744205921189,63.85768846,105.38,105.3,502.1]
[1744205921390,0.06106739,105.39,105.36,0.06231843]
[1744205921692,0.06912517,105.39,105.36,0.06560663]
[1744205923289,9.4958,105.37,105.36,0.06560663]
[1744205923490,0.06912517,105.39,105.36,0.06560663]
[1744205923699,9.4958,105.37,105.36,0.06560663]
[1744205923881,0.06912517,105.39,105.36,0.06560663]
[1744205924493,63.92681363,105.39,105.36,0.06560663]
[1744205924693,9.4958,105.37,105.36,0.06560663]
[1744205925388,63.85768846,105.37,105.3,285.02898742]
[1744205925583,63.85768846,105.37,105.29,4.7244]
[1744205925782,4.5915,105.38,105.29,4.7244]
[1744205926084,4.5915,105.38,105.29,68.58208846]
[1744205926290,4.5915,105.38,105.3,9.5016]
[1744205926485,9.4987,105.34,105.29,68.58208846]
[1744205926691,9.4987,105.34,105.32,0.07180772]
[1744205926992,63.85768846,105.43,105.32,848.80079514]
[1744205927189,4.4726,105.44,105.37,63.85768846]
[1744205927385,1.65120638,105.54,105.41,63.85768846]
[1744205927686,63.85768846,105.55,105.41,63.85768846]
[1744205927687,0.06951638,105.49,105.45,63.85768846]
[1744205927889,0.06951638,105.49,105.46,4.431]
[1744205928087,0.06951638,105.49,105.47,63.85768846]
[1744205928286,63.85768846,105.57,105.47,348.88667588]
[1744205928484,9.4911,105.59,105.49,63.85768846]
[1744205928683,1.74256425,105.58,105.49,348.88667588]
[1744205928885,9.4911,105.59,105.51,63.85768846]
[1744205929086,4.8662,105.59,105.51,348.88667588]
[1744205929390,1.74211433,105.58,105.51,285.02898742]
[1744205929587,9.4796,105.55,105.54,0.07220245]
[1744205929995,9.4829,105.52,105.49,501.7]
[1744205930294,68.72388846,105.59,105.46,293.75358742]
[1744205930295,63.85768846,105.55,105.46,289.45998742]
[1744205930593,1.74280365,105.54,105.47,62.0]
[1744205930995,4.8662,105.59,105.47,347.02898742]
[1744205931210,1.74233664,105.58,105.55,63.85768846]
[1744205931489,9.4691,105.67,105.57,63.85768846]
[1744205931694,1.64854686,105.72,105.62,63.85768846]
[1744205931897,0.06534558,105.63,105.62,63.85768846]
[1744205932099,9.4676,105.69,105.62,850.00667588]
[1744205932289,1.73991637,105.72,105.67,63.85768846]
[1744205932488,63.85768846,105.79,105.7,9.4656]
[1744205932688,1.73913401,105.78,105.7,501.12]
[1744205932896,1.73913401,105.77,105.7,501.12]
[1744205933195,9.4663,105.7,105.67,285.02898742]
[1744205933395,63.85768846,105.73,105.67,285.02898742]
[1744205933597,63.85768846,105.71,105.61,63.85768846]
[1744205933906,63.85768846,105.69,105.6,786.14898742]
[1744205934093,9.4703,105.66,105.61,62.0]
[1744205934399,63.85768846,105.69,105.6,786.14898742]
[1744205934699,0.06996901,105.65,105.62,0.06535303]
[1744205935095,63.92765747,105.65,105.56,63.85768846]
[1744205935298,63.92765747,105.65,105.55,285.02898742]
[1744205935492,1.74088832,105.64,105.55,285.02898742]
[1744205935695,9.4749,105.61,105.56,63.85768846]
[1744205935996,63.85768846,105.64,105.55,285.02898742]
[1744205936189,9.4749,105.61,105.55,285.02898742]
[1744205936391,63.85768846,105.67,105.56,63.85768846]
[1744205936603,1.74089305,105.66,105.56,348.88667588]
[1744205936800,0.06525843,105.59,105.57,0.06132741]
[1744205936992,63.85768846,105.67,105.57,285.09031483]
[1744205937194,68.71418846,105.69,105.58,63.85768846]
[1744205937490,1.74102173,105.68,105.57,285.02898742]
[1744205937695,63.85768846,105.67,105.56,63.85768846]
[1744205937895,1.74102173,105.66,105.56,348.88667588]
[1744205938096,1.74102173,105.68,105.59,63.85768846]
[1744205938403,4.8565,105.69,105.6,63.92559463]
[1744205938592,4.8565,105.69,105.6,63.85768846]
[1744205938793,1.7403883,105.68,105.59,285.02898742]
[1744205939292,1.74043791,105.67,105.59,294.50498742]
[1744205939488,0.06961552,105.65,105.62,0.06675164]
[1744205939695,0.06961552,105.65,105.63,9.4717]
[1744205939906,0.06961552,105.65,105.63,285.02898742]
[1744205940094,0.06961552,105.65,105.63,285.09175703]
[1744205940405,0.06961552,105.65,105.64,63.85768846]
[1744205940704,4.5725,105.76,105.65,63.85768846]
[1744205940900,9.2164,105.84,105.7,63.85768846]
[1744205941099,4.5725,105.84,105.76,63.85768846]
[1744205941304,1.73854826,105.83,105.78,63.85768846]
[1744205941503,1.73780904,105.88,105.8,63.85768846]
[1744205941693,9.3422,105.89,105.78,564.21768846]
[1744205941894,0.06969508,105.82,105.79,0.06057979]
[1744205942096,1.73752412,105.87,105.78,500.36]
[1744205942303,63.85768846,105.83,105.75,285.02898742]
[1744205942501,1.79847676,105.82,105.79,0.0661094]
[1744205942703,0.06095264,105.82,105.79,564.28379786]
[1744205942898,0.06095264,105.82,105.81,63.85768846]
[1744205943099,4.6983,105.89,105.81,73.31768846]
[1744205943402,4.5725,105.92,105.84,63.85768846]
[1744205943699,4.5725,105.92,105.81,285.02898742]
[1744205943700,1.73647778,105.91,105.82,63.85768846]
[1744205943897,1.73677932,105.9,105.84,63.85768846]
[1744205944099,9.4502,105.88,105.85,62.0]
[1744205944300,75.49106642,106.0,105.86,563.84485523]
[1744205944500,63.85768846,105.96,105.86,848.87384265]
[1744205944694,1.73620772,105.95,105.88,63.85768846]
[1744205944899,75.49106642,106.0,105.9,63.85768846]
[1744205944900,139.34875488,106.0,105.9,63.85768846]
[1744205945102,139.34875488,106.0,105.9,348.88667588]
[1744205945499,9.4454,105.94,105.9,285.02898742]
[1744205945704,0.07045888,105.96,105.94,0.07267511]
[1744205945898,63.85768846,105.98,105.89,285.02898742]
[1744205946099,1.73550236,105.97,105.89,285.02898742]
[1744205946307,0.0609739,105.96,105.94,0.06667863]
[1744205946604,63.85768846,105.98,105.84,499.92]
[1744205946909,63.85768846,105.91,105.84,285.02898742]
[1744205947108,63.85768846,105.87,105.79,285.02898742]
[1744205947415,63.85768846,105.87,105.76,348.88667588]
[1744205947712,1.73777589,105.86,105.76,348.88667588]
[1744205947893,0.06395111,105.83,105.81,63.85768846]
[1744205948096,9.4544,105.84,105.81,784.56898742]
[1744205948303,63.85768846,105.89,105.81,499.54]
[1744205948501,63.85768846,105.87,105.77,499.54]
[1744205948700,9.4568,105.81,105.77,499.54]
[1744205948896,63.85768846,105.83,105.76,285.02898742]
[1744205949100,63.85768846,105.85,105.76,285.02898742]
[1744205949297,0.07067748,105.81,105.78,0.06645681]
[1744205949814,0.07067748,105.81,105.73,348.88667588]
[1744205949998,0.07067748,105.81,105.78,0.07066912]
[1744205950200,63.85768846,105.85,105.78,0.07066912]
[1744205950400,0.06306778,105.81,105.78,0.07066912]
[1744205950599,0.06306778,105.81,105.75,63.85768846]
[1744205950800,0.06306778,105.81,105.78,0.06166228]
[1744205951094,1.73811661,105.84,105.78,0.06166228]
[1744205951298,63.85768846,105.8,105.73,285.02898742]
[1744205951498,63.85768846,105.8,105.71,499.54]
[1744205951695,9.4641,105.73,105.67,4.443]
[1744205951908,63.85768846,105.79,105.68,63.85768846]
[1744205952111,63.85768846,105.77,105.67,289.47198742]
[1744205952497,0.06234724,105.73,105.67,289.47198742]
[1744205952808,0.06234724,105.73,105.71,0.06314248]
[1744205954411,63.85768846,105.72,105.63,784.46898742]
[1744205954598,0.06234724,105.73,105.63,848.32667588]
[1744205954799,3.64167997,105.89,105.65,63.85768846]
[1744205955006,68.54868846,105.81,105.7,63.85768846]
[1744205955314,9.4597,105.78,105.71,62.0]
[1744205955507,4.691,105.81,105.71,62.0]
[1744205955710,1.73849461,105.8,105.7,784.50898742]
[1744205956004,4.691,105.81,105.75,0.06436438]
[1744205956005,0.06402845,105.77,105.75,0.06436438]
[1744205956407,0.06402845,105.77,105.75,9.52566438]
[1744205956608,4.7777,105.84,105.75,0.06436438]
[1744205956907,9.4536,105.85,105.79,9.4574]
[1744205957213,4.6321,105.87,105.75,63.85768846]
[1744205957408,4.6321,105.87,105.78,63.85768846]
[1744205957601,4.6321,105.87,105.78,422.85768846]
[1744205957804,4.6321,105.87,105.78,63.85768846]
[1744205958099,0.06917735,105.84,105.81,0.06065507]
[1744205958509,0.06917735,105.84,105.83,9.4545]
[1744205958705,0.06917735,105.84,105.81,359.06065507]
[1744205960714,63.85768846,105.95,105.82,63.85768846]
[1744205961013,4.4468,105.96,105.87,63.85768846]
[1744205961206,63.85768846,106.01,105.9,63.85768846]
[1744205961410,63.85768846,106.03,105.92,63.85768846]
[1744205961704,538.44494004,106.14,105.94,63.85768846]
[1744205961911,68.69398846,106.03,105.93,62.0]
[1744205962107,0.06988018,105.99,105.97,9.4413]
[1744205962311,0.06988018,105.99,105.96,0.06668886]
[1744205962515,0.06988018,105.99,105.94,63.85768846]
[1744205962713,18.8506,106.16,105.98,63.85768846]
[1744205962909,63.85768846,106.09,105.98,63.85768846]
[1744205963102,4.8363,106.1,106.0,63.85768846]
[1744205963304,4.8363,106.1,106.0,422.85768846]
[1744205963607,1.64104499,106.19,106.0,422.85768846]
[1744205963805,63.85768846,106.1,106.0,359.0]
[1744205964005,0.06987441,106.06,106.04,0.07188037]
[1744205964415,63.85768846,106.1,105.98,63.85768846]
[1744205964616,63.85768846,106.08,106.04,0.06978032]
[1744205964814,0.07151773,106.06,106.04,0.06978032]
[1744205965005,63.85768846,106.1,106.0,63.85768846]
[1744205965206,0.0638348,106.06,106.04,0.0647002]
[1744205965607,0.0638348,106.06,106.0,63.85768846]
[1744205965608,0.0638348,106.06,106.03,62.18348124]
[1744205965807,63.85768846,106.15,106.03,422.85768846]
[1744205966110,63.85768846,106.13,106.02,63.85768846]
[1744205966306,9.3752,106.22,106.06,63.85768846]
[1744205966617,63.85768846,106.19,106.09,63.85768846]
[1744205966802,70.35065018,106.21,106.09,63.85768846]
[1744205967007,0.06713976,106.15,106.13,0.05968387]
[1744205967210,4.7542,106.21,106.13,63.91737233]
[1744205967416,105.99442061,106.28,106.15,63.85768846]
[1744205967618,68.42488846,106.26,106.15,63.85768846]
[1744205967812,63.85768846,106.22,106.14,498.88]
[1744205968005,4.5672,106.26,106.15,63.85768846]
[1744205968314,1.73837404,106.25,106.21,63.85768846]
[1744205968508,9.268e-05,106.22,106.2,63.85768846]
[1744205968707,4.5672,106.32,106.24,9.4172]
[1744205968708,9.4134,106.3,106.24,9.4172]
[1744205969003,4.5672,106.32,106.21,63.85768846]
[1744205969207,9.4181,106.24,106.18,63.85768846]
[1744205969408,4.5672,106.32,106.18,63.85768846]
[1744205969607,63.85768846,106.28,106.16,422.85768846]
[1744205969808,65.59602531,106.27,106.17,62.0]
[1744205970006,63.85768846,106.25,106.15,498.5]
[1744205970418,63.85768846,106.25,106.1,921.35768846]
[1744205970419,6.44763783,106.24,106.1,921.35768846]
[1744205970620,63.85768846,106.22,106.12,63.85768846]
[1744205970821,9.2172,106.24,106.12,63.85768846]
[1744205971120,1.73853424,106.23,106.12,63.85768846]
[1744205971417,73.07488846,106.24,106.18,73.28108846]
[1744205971418,0.06622147,106.19,106.18,73.28108846]
[1744205971610,63.85768846,106.32,106.18,921.01768846]
[1744205971807,63.85768846,106.32,106.2,63.85768846]
[1744205972017,63.85768846,106.28,106.18,562.01768846]
[1744205972212,63.85768846,106.28,106.18,498.16]
[1744205972417,63.85768846,106.26,106.14,63.85768846]
[1744205972618,63.85768846,106.26,106.16,63.85768846]
[1744205972817,63.85768846,106.26,106.12,498.16]
[1744205972818,0.0648862,106.21,106.19,0.06751425]
[1744205973017,1.71256357,106.2,106.19,0.06751425]
[1744205973217,9.1262,106.33,106.19,562.01768846]
[1744205973218,63.85768846,106.32,106.19,562.01768846]
[1744205973409,72.98388846,106.33,106.21,63.85768846]
[1744205973612,39.08494004,106.46,106.26,63.85768846]
[1744205973815,0.06856787,106.27,106.22,63.85768846]
[1744205974122,4.8658,106.34,106.24,63.85768846]
[1744205974418,0.06403454,106.26,106.23,0.06929428]
[1744205974615,1.69908751,106.25,106.23,63.85768846]
[1744205974813,1.69908751,106.24,106.21,561.73768846]
[1744205975016,9.47660199,106.26,106.23,0.06811346]
[1744205975316,1.6991819,106.25,106.21,497.88]
[1744205975510,1.6991819,106.24,106.21,507.3002]
[1744205975712,0.06651021,106.26,106.23,0.06353217]
[1744205975913,1.6985663,106.25,106.23,0.06353217]
[1744205976123,1.6985663,106.25,106.15,422.85768846]
[1744205976124,65.55625476,106.24,106.15,359.0]
[1744205976420,68.72348846,106.24,106.14,497.88]
[1744205976619,63.85768846,106.22,106.11,63.85768846]
[1744205976823,63.85768846,106.2,106.15,1.88412623]
[1744205977024,1.68596021,106.19,106.15,1.88412623]
[1744205977215,1.68596021,106.18,106.15,1.88412623]
[1744205977516,11.11116021,106.17,106.16,6.804e-05]
[1744205978120,74.96364867,106.17,106.06,9.4347]
[1744205978416,63.85768846,106.13,106.04,497.72]
[1744205978720,1.68596021,106.12,106.05,63.85768846]
[1744205978927,0.07124977,106.1,106.07,0.0616789]
[1744205979120,1.68596021,106.09,106.08,9.4328]
[1744205979315,57.91384004,106.3,106.07,73.33936736]
[1744205979523,9.4248,106.18,106.13,9.4287]
[1744205979715,63.85768846,106.23,106.13,63.85768846]
[1744205979914,63.85768846,106.25,106.13,63.85768846]
[1744205980117,9.424,106.19,106.14,9.4277]
[1744205980316,63.85768846,106.25,106.13,63.85768846]
[1744205980625,0.06428838,106.18,106.15,63.91820394]
[1744205980815,1.67301652,106.17,106.15,0.06051548]
[1744205981017,1.67301652,106.16,106.15,0.06051548]
[1744205981417,1.652e-05,106.16,106.15,73.33820394]
[1744205981618,0.06428838,106.18,106.15,73.33820394]
[1744205981917,4.4652,106.28,106.17,63.85768846]
[1744205982119,4.4652,106.28,106.19,63.85768846]
[1744205982318,68.32288846,106.28,106.18,497.76]
[1744205982519,68.32288846,106.28,106.11,422.85768846]
[1744205982520,68.32288846,106.28,106.17,63.85768846]
[1744205982719,9.4203,106.23,106.19,63.85768846]
[1744205982932,1.66001419,106.22,106.17,63.85768846]
[1744205983125,1.66001419,106.21,106.2,0.07083258]
[1744205983326,11.08171419,106.21,106.2,0.07083258]
[1744205983528,1.66001419,106.21,106.13,63.85768846]
[1744205983833,1.66001419,106.2,106.12,497.76]
[1744205984028,1.66001419,106.19,106.07,497.62]
[1744205984222,1.66001419,106.18,106.07,497.62]
[1744205984534,1.66015734,106.17,106.08,2.513]
[1744205984727,0.06766666,106.15,106.13,0.06996956]
[1744205984924,1.66015734,106.14,106.13,0.06996956]
[1744205985119,1.66015734,106.14,106.07,497.62]
[1744205985326,1.66015734,106.13,106.07,561.47768846]
[1744205985528,0.06271777,106.15,106.12,0.06955137]
[1744205985735,1.66022671,106.14,106.09,62.18859745]
[1744205986034,9.5157,106.2,106.13,63.85768846]
[1744205986330,9.5157,106.2,106.08,30.21696]
[1744205986331,9.5157,106.2,106.11,63.85768846]
[1744205986833,9.5157,106.2,106.13,63.85768846]
[1744205987034,0.07104486,106.17,106.14,0.07112773]
[1744205987230,1.63391647,106.16,106.14,0.07112773]
[1744205987433,0.07104486,106.17,106.14,0.07112773]
[1744205987628,1.63393579,106.15,106.14,0.07112773]
[1744205988135,563.4833,106.39,106.14,993.84650465]
[1744205988331,9.4242,106.19,106.15,130.02638846]
[1744205988532,63.85768846,106.26,106.14,63.85768846]
[1744205988737,63.85768846,106.28,106.16,63.85768846]
[1744205988934,9.4206,106.23,106.18,9.4236]
[1744205989136,4.5324,106.29,106.16,63.85768846]
[1744205989336,0.06933528,106.22,106.19,0.0699044]
[1744205989533,1.62118408,106.21,106.19,0.0699044]
[1744205989735,1.62118408,106.2,106.18,63.85768846]
[1744205989934,1.62118408,106.19,106.18,63.85768846]
[1744205990133,1.62118408,106.19,106.16,561.43768846]
[1744205990340,63.85768846,106.25,106.18,0.06692508]
[1744205990545,9.4234,106.19,106.18,0.06692508]
[1744205990843,1.68356344,106.19,106.18,63.85768846]
[1744205991140,1.62121668,106.19,106.17,0.07261549]
[1744205991351,1.668e-05,106.18,106.17,0.07261549]
[1744205991547,0.06106885,106.2,106.19,9.4234]
[1744205991548,6.885e-05,106.2,106.19,9.4234]
[1744205991753,4.5324,106.29,106.19,561.35768846]
[1744205991940,9.4195,106.24,106.2,9.4221]
[1744205992345,11.36649056,106.31,106.19,561.35768846]
[1744205992648,28.2008,106.46,106.29,63.85768846]
[1744205992848,4.4604,106.44,106.34,63.85768846]
[1744205993054,9.4068,106.38,106.34,73.26708846]
[1744205993251,0.06706964,106.4,106.36,63.85768846]
[1744205993455,4.4604,106.44,106.36,63.85768846]
[1744205993746,0.07170633,106.39,106.35,0.06419695]
[1744205993952,1.59570075,106.38,106.34,63.85768846]
[1744205994146,2.88580575,106.5,106.36,0.06575905]
[1744205994450,63.85768846,106.47,106.35,63.85768846]
[1744205994653,9.4079,106.37,106.33,63.85768846]
[1744205995147,18.7961,106.48,106.33,63.85768846]
[1744205995340,63.85768846,106.43,106.33,63.85768846]
[1744205995547,0.06522694,106.36,106.34,4.569e-05]
[1744205995746,0.06522694,106.36,106.23,63.85768846]
[1744205995747,65.44106331,106.35,106.23,63.85768846]
[1744205996046,65.44106331,106.34,106.23,63.85768846]
[1744205996245,9.415,106.29,106.24,9.4189]
[1744205996456,1.58337485,106.28,106.23,63.85768846]
[1744205996753,1.58337485,106.27,106.26,9.4169]
[1744205996952,3.78322574,106.35,106.2,422.85768846]
[1744205997151,0.06683878,106.27,106.26,63.85768846]
[1744205997549,3.78322574,106.35,106.26,63.85768846]
[1744205997944,0.0671895,106.28,106.27,9.4158]
[1744205998144,4.5078,106.38,106.26,560.95768846]
[1744205998345,4.5078,106.38,106.29,63.92022239]
[1744205998751,4.7723,106.44,106.29,63.85768846]
[1744205998953,561.05768846,106.42,106.31,63.85768846]
[1744205999149,1.54576511,106.41,106.33,63.85768846]
[1744205999348,0.06137499,106.38,106.35,63.92827685]
[1744205999541,0.06137499,106.38,106.37,63.85768846]
[1744205999747,1.54561228,106.38,106.37,63.85768846]
[1744205999947,101.36866772,106.47,106.37,9.4]
[1744206000255,101.36866772,106.47,106.38,63.85768846]
[1744206000653,101.36866772,106.47,106.44,63.85768846]
[1744206000854,101.36866772,106.47,106.45,63.21769904]
[1744206001054,1.53352291,106.46,106.45,72.61809904]
[1744206001357,15.55688921,106.5,106.45,135.83539808]
[1744206001547,15.55688921,106.5,106.48,63.21769904]
[1744206001745,15.55688921,106.5,106.46,63.21769904]
[1744206002053,15.55688921,106.5,106.4,604.21769904]
[1744206002250,63.21769904,106.45,106.35,63.21769904]
[1744206002456,9.4069,106.38,106.34,9.4097]
[1744206002759,87.97548825,106.5,106.39,0.0604476]
[1744206002958,63.21769904,106.46,106.35,63.21769904]
[1744206003258,1.52187791,106.45,106.35,63.21769904]
[1744206003556,63.21769904,106.43,106.33,496.88]
[1744206003854,1.5219051,106.42,106.33,496.88]
[1744206004060,64.73965617,106.41,106.3,63.21769904]
[1744206004257,57.68230959,106.4,106.26,1.63579957]
[1744206004449,63.21769904,106.33,106.22,559.99769904]
[1744206004656,63.21769904,106.38,106.28,63.21769904]
[1744206004954,63.21769904,106.37,106.22,541.0]
[1744206005153,63.21769904,106.34,106.21,3.58725376]
[1744206005362,63.21769904,106.32,106.21,63.21769904]
[1744206005566,9.4186,106.25,106.21,1.63753147]
[1744206005762,1.5104706,106.24,106.21,64.85523051]
[1744206006059,60.18133766,106.35,106.24,9.4186]
[1744206006258,60.18133766,106.35,106.23,63.21769904]
[1744206006461,60.18133766,106.35,106.22,63.21769904]
[1744206006761,63.21769904,106.35,106.24,63.21769904]
[1744206007067,63.21769904,106.32,106.21,63.21769904]
[1744206007269,63.21769904,106.3,106.28,7.942e-05]
[1744206007567,64.71652882,106.29,106.19,146.46249483]
[1744206007752,63.21769904,106.3,106.19,146.46249483]
[1744206007753,63.21769904,106.26,106.19,146.46249483]
[1744206007955,1.49882978,106.25,106.21,63.21769904]
[1744206008262,1.49882978,106.24,106.21,63.21769904]
[1744206008563,0.0665825,106.24,106.22,0.05930466]
[1744206008764,10.91882925,106.23,106.22,0.05930466]
[1744206008963,74.13652829,106.23,106.22,4.66e-06]
[1744206009163,74.13662829,106.23,106.11,63.21769904]
[1744206009363,63.21769904,106.2,106.11,62.0]
[1744206009561,1.49892925,106.19,106.11,125.21769904]
[1744206009763,1.49892925,106.18,106.15,63.21769904]
[1744206009964,4.8246,106.26,106.17,63.21769904]
[1744206010168,63.21769904,106.3,106.19,63.21769904]
[1744206010470,63.21769904,106.3,106.18,63.21769904]
[1744206010668,0.05950479,106.26,106.24,63.21769904]
[1744206010875,63.21769904,106.45,106.25,496.98]
[1744206011059,63.21769904,106.37,106.27,63.21769904]
[1744206011260,10.89591662,106.36,106.29,72.63149904]
[1744206011465,1.48721662,106.35,106.29,63.21769904]
[1744206011662,1.48721662,106.34,106.33,63.21769904]
[1744206011858,63.21769904,106.43,106.33,63.21769904]
[1744206012073,63.21769904,106.43,106.31,4.3989]
[1744206012371,0.06264239,106.35,106.32,0.06265769]
[1744206012673,506.3652,106.44,106.32,63.21769904]
[1744206012873,1.47552212,106.34,106.32,0.07144351]
[1744206013071,0.06884,106.35,106.33,63.21769904]
[1744206013258,4.7816,106.44,106.33,63.21769904]
[1744206013571,0.06422741,106.35,106.34,62.0]
[1744206013765,63.21769904,106.41,106.34,62.0]
[1744206014067,4.7816,106.44,106.34,62.0]
[1744206014068,4.7816,106.44,106.34,125.21769904]
[1744206014364,9.408,106.37,106.36,8.735e-05]
[1744206014565,64.68186176,106.37,106.25,560.05769904]
[1744206014777,1.46416272,106.36,106.25,560.05769904]
[1744206014958,1.46416272,106.35,106.25,560.05769904]
[1744206015157,1.46416272,106.34,106.25,496.84]
[1744206015356,4.5952,106.39,106.22,63.21769904]
[1744206015357,64.68186176,106.33,106.22,63.21769904]
[1744206015573,63.21769904,106.31,106.2,919.05769904]
[1744206015771,63.21769904,106.29,106.2,855.84]
[1744206015971,1.46416272,106.28,106.26,0.05949613]
[1744206016170,488.9478715,106.34,106.2,855.84]
[1744206016363,63.21769904,106.31,106.2,855.84]
[1744206016567,63.21769904,106.29,106.2,855.84]
[1744206016874,63.21769904,106.31,106.21,63.21769904]
[1744206017074,63.21769904,106.28,106.17,67.83769904]
[1744206017270,1.45316611,106.27,106.18,125.21769904]
[1744206017481,9.4226,106.2,106.14,496.84]
[1744206017774,1.45316611,106.19,106.14,496.84]
[1744206018068,6.611e-05,106.18,106.14,496.84]
[1744206018269,63.21769904,106.23,106.11,541.0]
[1744206018481,63.21769904,106.25,106.14,63.21769904]
[1744206018773,0.068562,106.18,106.16,0.06328557]
[1744206018969,9.4231,106.2,106.16,9.4256]
[1744206019165,0.06750117,106.18,106.12,74.24756432]
[1744206019368,0.06750117,106.18,106.16,0.06848922]
[1744206020275,4.4687,106.32,106.17,63.21769904]
[1744206020465,63.21769904,106.4,106.29,63.21769904]
[1744206020780,63.21769904,106.4,106.3,496.96]
[1744206020964,63.21769904,106.42,106.31,63.21769904]
[1744206021476,0.06122294,106.38,106.35,0.06520618]
[1744206021770,63.21769904,106.4,106.3,496.96]
[1744206022076,63.21769904,106.34,106.26,363.6521]
[1744206022373,63.21769904,106.32,106.21,4.4259]
[1744206022673,63.21769904,106.3,106.2,496.84]
[1744206022875,63.21769904,106.28,106.2,496.84]
[1744206023073,4.4757,106.31,106.2,496.84]
[1744206023268,63.21769904,106.27,106.18,4.684]
[1744206023473,63.27864544,106.25,106.23,7.923e-05]
[1744206023974,63.21769904,106.25,106.17,9.4249]
[1744206024180,63.21769904,106.23,106.13,496.84]
[1744206024570,9.2175,106.24,106.11,13.9299]